Cogmind - Beta 11 @@@ ROGUE MODE // 2022.04.01 @ 19:37:26 Player: Turbografx16 Result: Self-destructed Performance ------------- Evolutions (3) 1500 Regions Visited (8) 1600 Robots Destroyed (53) 265 Value Destroyed (1616) 1616 Prototype IDs (8) 160 Alien Tech Used (0) 0 Bonus (752) 752 TOTAL SCORE: 5893 Bonus ------- High Alert Combat Kills 52 Entered Garrisons 200 Used RIF Installer 500 Cogmind --------- Core Integrity 211/700 Matter 79/300 Energy 100/100 System Corruption 2% Temperature Cool (0) Movement Core (150) Ox2 Location -7/Factory Parts ------- > --- POWER (2) -------- (None) > --- PROPULSION (5) --- (None) > --- UTILITY (4) ------ Small Storage Unit Hacking Suite > --- WEAPON (2) ------- Enhanced Autogun > --- INVENTORY (8) ---- Improved Sensor Array Improved Signal Interpreter Transmission Jammer Cloak of Protection Relay Coupler [Grunt] (22) Peak State ------------ > --- POWER ------------ Light Deuterium Engine Light Nuclear Core > --- PROPULSION ------- VTOL Module VTOL Module Improved Flight Unit Improved Flight Unit Improved Flight Unit > --- UTILITY ---------- Small Storage Unit Hacking Suite Makeshift System Shield Relay Coupler [Grunt] > --- WEAPON ----------- Enhanced Autogun Enhanced Autogun > --- INVENTORY -------- Improved Heat Sink Improved Sensor Array Improved Signal Interpreter Cloak of Protection Relay Coupler [Grunt] Heavy EM Shotgun High-powered Shotgun High-powered Shotgun [Rating: 41] Favorites ----------- Power Light Ion Engine Engine Light Ion Engine Power Core Light Nuclear Core Propulsion Light Treads Treads Light Treads Leg Aluminum Leg Hover Unit Airjet Flight Unit Improved Flight Unit Utility Small Storage Unit Device Terrain Scanner Storage Small Storage Unit Processor Signal Interpreter Hackware Makeshift System Shield Weapon Light Assault Rifle Energy Gun Makeshift Laser Ballistic Gun Light Assault Rifle Build | -11 -10 -10 -10 -9 -8 -8 -8 -7 ------- Run | Scr Mat Min Exi Min Mat Gar Mat Fac Slots Evolved 6 | . . . . . 4 . . 2 Power 1 | . . . . . 1 . . . Propulsion 3 | . . . . . 2 . . 1 Utility 2 | . . . . . 1 . . 1 Weapon . | . . . . . . . . . Parts Attached 73 | 1 8 . 4 1 16 5 3 35 Power 16 | . 1 . . . 6 . . 9 Engine 14 | . 1 . . . 6 . . 7 Core 2 | . . . . . . . . 2 Reactor . | . . . . . . . . . Propulsion 17 | . 4 . . . 4 . 1 8 Treads 2 | . 2 . . . . . . . Leg 1 | . 1 . . . . . . . Wheel . | . . . . . . . . . Hover 4 | . . . . . . . . 4 Flight 10 | . 1 . . . 4 . 1 4 Utility 13 | . 2 . 1 1 2 3 . 4 Device 9 | . 1 . 1 1 1 2 . 3 Storage . | . . . . . . . . . Processor 1 | . 1 . . . . . . . Hackware 3 | . . . . . 1 1 . 1 Protection . | . . . . . . . . . Artifact . | . . . . . . . . . Weapon 27 | 1 1 . 3 . 4 2 2 14 Energy Gun 4 | . . . 1 . . . 1 2 Energy Cannon . | . . . . . . . . . Ballistic Gun 23 | 1 1 . 2 . 4 2 1 12 Ballistic Cannon . | . . . . . . . . . Launcher . | . . . . . . . . . Special Weapon . | . . . . . . . . . Impact Weapon . | . . . . . . . . . Slashing Weapon . | . . . . . . . . . Piercing Weapon . | . . . . . . . . . Special Melee Weapon . | . . . . . . . . . Unidentified Prototypes 8 | . 1 . 1 . . . 3 3 Parts Lost 19 | . . . . 1 . . 3 15 Power 5 | . . . . . . . 1 4 Propulsion 9 | . . . . 1 . . 2 6 Utility 3 | . . . . . . . . 3 Weapon 2 | . . . . . . . . 2 Highest Loss Streak 7 | . . . . 1 . . 2 7 To Critical Strikes . | . . . . . . . . . Average Slot Usage (%) 94 | . 97 100 99 87 93 89 88 83 Engine 13 | . 14 14 14 14 12 18 17 7 Treads 18 | . 20 28 28 26 . . . . Leg 1 | . 7 . . . . . . . Flight 9 | . . . . . 35 36 35 27 Device 2 | . 8 . 2 3 9 1 . . Storage 12 | . 14 14 14 14 9 9 9 7 Processor 6 | . 3 14 11 . . . . . Hackware 5 | . . . . . 8 14 18 20 Energy Gun 1 | . . . 7 . . . . . Ballistic Gun 20 | . 28 28 19 28 18 10 8 11 Naked Turns . | . . . . . . . . . Heaviest Build 29 | 12 13 10 22 22 29 29 19 22 Greatest Support 40 | 20 40 40 40 40 20 20 20 32 Greatest Overweight (x) 1 | . . . . . 1 1 . 1 Average Overweight (x) . | . . . . . . . . . Largest Inventory Capacity 8 | 8 8 8 8 8 8 8 8 8 Average Capacity 8 | 8 8 8 8 8 8 8 8 8 Most Carried 8 | 6 8 8 8 8 8 8 8 8 Average Carried 7 | 6 7 8 7 7 6 7 7 7 Final Capacity 8 | 8 8 8 8 8 8 8 8 8 Final Carried 8 | 6 8 8 7 8 7 7 8 5 Class Distribution -------------------- 71% | Mutant 16% | Sprinter 5% | Hacker-Sprinter 3% | Hacker-Mutant Dominant Class ---------------- Mutant | -10/Materials Mutant | -10/Mines Mutant | -10/Exiles Mutant | -9/Mines Sprinter | -8/Materials Sprinter | -8/Garrison Sprinter | -8/Materials Hacker-Sprinter | -7/Factory Resources | -11 -10 -10 -10 -9 -8 -8 -8 -7 ----------- Run | Scr Mat Min Exi Min Mat Gar Mat Fac Matter Collected 1650 | 200 152 16 . 172 161 43 259 647 Remotely . | . . . . . . . . . Salvage Created 1690 | . 323 47 . 280 172 43 110 715 Parts 112 | . 20 5 . 24 18 4 12 29 Haulers Intercepted 1 | . . . . . . . . 1 Recyclers Shooed 1 | . 1 . . . . . . . Parts Field Recycled . | . . . . . . . . . Retrieved Matter . | . . . . . . . . . Parts Self-Destructed . | . . . . . . . . . Prevented . | . . . . . . . . . Kills | -11 -10 -10 -10 -9 -8 -8 -8 -7 ------- Run | Scr Mat Min Exi Min Mat Gar Mat Fac Combat Hostiles Destroyed 46 | . 7 3 . 8 3 4 5 16 Guns 45 | . 7 3 . 8 3 4 5 15 AOE 1 | . . . . . . . . 1 Classes Destroyed 10 | . 4 . . 1 2 . . 3 Worker 1 | . . . . . . . . 1 Builder 1 | . . . . . 1 . . . Hauler 1 | . . . . . . . . 1 Recycler 1 | . 1 . . . . . . . Watcher 3 | . 1 . . . 1 . . 1 Swarmer 21 | . 3 3 . 3 . 4 4 4 Cutter 2 | . . . . . . . . 2 Grunt 18 | . 4 . . 4 . . 1 9 Duelist 1 | . . . . 1 . . . . Sentry 4 | . . . . . 3 . . 1 Best Kill Streak 6 | . 3 3 . 3 4 4 2 6 Combat Bots Only 6 | . 3 3 . 3 3 4 2 6 Max Kills in Single Turn 2 | . 2 1 . 2 2 1 1 1 Gunslinging 1 | . . . . 1 . . . . Exploded 1 | . . . . . . . . 1 Melee . | . . . . . . . . . Uniques/NPCs Destroyed . | . . . . . . . . . Combat | -11 -10 -10 -10 -9 -8 -8 -8 -7 -------- Run | Scr Mat Min Exi Min Mat Gar Mat Fac Damage Taken 2883 | . 402 40 . 470 54 70 218 1629 Core 769 | . 106 . . 114 25 8 27 489 Absorbed by Shields . | . . . . . . . . . Regen/Repaired (Parts) 158 | . . . . . 37 . . 121 Core Remaining (%) 67 | 100 . . . 12 . . 89 . Volleys Fired 194 | . 33 6 . 17 7 7 33 91 Largest 2 | . 2 2 . 2 2 1 1 2 Hottest 50 | . 40 40 . 46 50 25 25 50 Shots Fired 313 | . 66 12 . 34 14 7 33 147 Gun 313 | . 66 12 . 34 14 7 33 147 Cannon . | . . . . . . . . . Launcher . | . . . . . . . . . Special . | . . . . . . . . . Kinetic 313 | . 66 12 . 34 14 7 33 147 Thermal . | . . . . . . . . . Explosive . | . . . . . . . . . Electromagnetic . | . . . . . . . . . Robot Hit Streak 20 | . 8 7 . 8 5 2 6 20 Robot Miss Streak 5 | . 3 2 . 4 2 4 4 5 Penetration Max . | . . . . . . . . . Secondary Targets 8 | . 2 2 . 3 . . . 1 Max Gunslinging Chain 1 | . 1 1 . 1 . . . 1 Shots Hit Robots 192 | . 43 7 . 19 11 4 17 91 Core Hits 92 | . 21 6 . 12 9 4 8 32 Critical Kills 3 | . . . . . 1 1 . 1 Critical Parts Destroyed . | . . . . . . . . . Critical Strikes 3 | . . . . . 1 1 . 1 Destroy 3 | . . . . . 1 1 . 1 Melee Attacks . | . . . . . . . . . Impact . | . . . . . . . . . Slashing . | . . . . . . . . . Piercing . | . . . . . . . . . Sneak Attacks . | . . . . . . . . . Combat Hostiles . | . . . . . . . . . Follow-up Attacks . | . . . . . . . . . Damage Inflicted 2927 | . 368 62 . 285 226 59 291 1636 Guns 2911 | . 368 50 . 285 226 59 291 1632 Cannons . | . . . . . . . . . Explosions . | . . . . . . . . . Melee . | . . . . . . . . . Ramming 16 | . . 12 . . . . . 4 Kinetic 2911 | . 368 50 . 285 226 59 291 1632 Thermal . | . . . . . . . . . Explosive . | . . . . . . . . . Electromagnetic . | . . . . . . . . . Impact . | . . . . . . . . . Slashing . | . . . . . . . . . Piercing . | . . . . . . . . . Highest Corruption 2 | . . . . . . . . 2 Average Corruption 2 | . . . . . . . . 2 Corruption Purged . | . . . . . . . . . Corruption Blocked . | . . . . . . . . . Overload Shots . | . . . . . . . . . Overflow Damage . | . . . . . . . . . Projectiles . | . . . . . . . . . Explosions . | . . . . . . . . . Melee . | . . . . . . . . . Knockbacks . | . . . . . . . . . Impact . | . . . . . . . . . Kinetic . | . . . . . . . . . Secondary . | . . . . . . . . . Self-Inflicted Damage 1 | . . . . . . . . 1 Shots . | . . . . . . . . . Rammed 8 | . . 4 . 1 . . . 3 Targets Rammed 8 | . . 4 . 1 . . . 3 Kicked . | . . . . . . . . . Crushed . | . . . . . . . . . Highest Temperature 368 | . 15 . . 49 3 9 94 368 Average Temperature 97 | . 7 . . 18 3 1 21 137 Received Heat Transfer 984 | . 147 . . 210 9 . 153 465 Effects 4 | . . . . . . . . 4 Energy Bleed 2 | . . . . . . . . 2 Matter Decay 1 | . . . . . . . . 1 Short Circuit 1 | . . . . . . . . 1 Siege Activations . | . . . . . . . . . Robots Corrupted . | . . . . . . . . . Combat Hostiles . | . . . . . . . . . Parts Fried . | . . . . . . . . . Impact Corruptions . | . . . . . . . . . Robots Melted . | . . . . . . . . . Combat Hostiles . | . . . . . . . . . Parts Melted . | . . . . . . . . . Heat Transferred . | . . . . . . . . . Parts Sabotaged . | . . . . . . . . . Parts Stolen . | . . . . . . . . . Parts Stripped . | . . . . . . . . . Power Chain Reactions . | . . . . . . . . . Missiles Intercepted . | . . . . . . . . . Alert | -11 -10 -10 -10 -9 -8 -8 -8 -7 ------- Run | Scr Mat Min Exi Min Mat Gar Mat Fac Peak Influence 574 | . 130 114 . 210 228 293 298 574 Initial 148 | . . 44 . . 81 148 142 126 Average 150 | . 72 19 . 120 172 225 137 400 Maximum Alert Level 2 | . . . . 1 1 1 1 2 Low Security (%) 70 | 100 100 100 . 92 39 50 71 3 Level 1 14 | . . . . 7 60 49 28 28 Level 2 14 | . . . . . . . . 68 Level 3 . | . . . . . . . . . Level 4 . | . . . . . . . . . Level 5 . | . . . . . . . . . High Security . | . . . . . . . . . Max Security . | . . . . . . . . . Squads Dispatched 8 | . 2 . . . . . 2 4 Investigation 4 | . 1 . . . . . 1 2 Extermination . | . . . . . . . . . Reinforcement 4 | . 1 . . . . . 1 2 Assault . | . . . . . . . . . Garrison . | . . . . . . . . . Intercept . | . . . . . . . . . Searches Triggered . | . . . . . . . . . Construction Impeded . | . . . . . . . . . Haulers Reinforced . | . . . . . . . . . Active Scanning Responses . | . . . . . . . . . Cargo Convoy Interrupts . | . . . . . . . . . Stealth | -11 -10 -10 -10 -9 -8 -8 -8 -7 --------- Run | Scr Mat Min Exi Min Mat Gar Mat Fac Distress Signals 2 | . 1 . . . . . . 1 Communications Jammed . | . . . . . . . . . Distress Signals . | . . . . . . . . . Times Spotted 81 | . 12 3 . 9 4 4 15 34 Peak Tracking Total 6 | . 3 3 . 5 3 4 4 6 Tactical Retreats 8 | . 1 . . 1 . . 1 5 Traps | -11 -10 -10 -10 -9 -8 -8 -8 -7 ------- Run | Scr Mat Min Exi Min Mat Gar Mat Fac Traps Triggered 6 | . 1 . . . . 4 . 1 Indirectly . | . . . . . . . . . Trap Hack Attempts . | . . . . . . . . . Triggered . | . . . . . . . . . Disarmed . | . . . . . . . . . Reprogrammed . | . . . . . . . . . Reused . | . . . . . . . . . Traps Extracted . | . . . . . . . . . Installed . | . . . . . . . . . Triggered . | . . . . . . . . . Machines | -11 -10 -10 -10 -9 -8 -8 -8 -7 ---------- Run | Scr Mat Min Exi Min Mat Gar Mat Fac Machines Disabled 3 | . . . . 1 . 1 1 . Max in Single Turn 1 | . . . . 1 . 1 1 . Garrison Relay 1 | . . . . . . 1 . . Machines Sabotaged . | . . . . . . . . . Garrisons Compromised . | . . . . . . . . . Overloaded Fab Kills . | . . . . . . . . . Hacking | -11 -10 -10 -10 -9 -8 -8 -8 -7 --------- Run | Scr Mat Min Exi Min Mat Gar Mat Fac Machines Accessed 22 | . 4 . 2 . 3 . 6 7 Terminals 12 | . 2 . . . 1 . 5 4 Fabricators 2 | . . . . . . . . 2 Repair Stations 2 | . . . . . 1 . . 1 Recycling Units 2 | . 2 . . . . . . . Scanalyzers 1 | . . . . . . . 1 . Garrison Access 1 | . . . . . 1 . . . Total Hacks 57 | . 9 . 5 . 8 . 19 16 Successful 36 | . 4 . 5 . 4 . 14 9 Failed 21 | . 5 . . . 4 . 5 7 Catastrophic 3 | . . . . . . . 2 1 Database Lockouts . | . . . . . . . . . Manual 25 | . 3 . 1 . 2 . 16 3 Terminals 32 | . 6 . . . 2 . 18 6 Fabricators 7 | . . . . . . . . 7 Repair Stations 6 | . . . . . 3 . . 3 Recycling Units 3 | . 3 . . . . . . . Scanalyzers 1 | . . . . . . . 1 . Garrison Access 3 | . . . . . 3 . . . Terminal Hacks 13 | . 1 . 5 . . . 5 2 Record 6 | . . . 5 . . . 1 . Open DSF 2 | . . . . . . . . 2 Level Access Points 1 | . . . . . . . 1 . Branch Access Points 1 | . . . . . . . 1 . Alert Level 1 | . . . . . . . 1 . Unreport Threat 1 | . . . . . . . 1 . Locate Traps 1 | . 1 . . . . . . . Fabricator Hacks 3 | . . . . . . . . 3 Load Schematic 2 | . . . . . . . . 2 Build 1 | . . . . . . . . 1 Repair Station Hacks 5 | . . . . . 3 . . 2 Scan Component 3 | . . . . . 2 . . 1 Repair 2 | . . . . . 1 . . 1 Recycling Unit Hacks 1 | . 1 . . . . . . . Report Inventory 1 | . 1 . . . . . . . Scanalyzer . | . . . . . . . . . Garrison Access Hacks 1 | . . . . . 1 . . . Unlock Access 1 | . . . . . 1 . . . Unauthorized Hacks 13 | . 2 . . . . . 9 2 Terminals 12 | . 2 . . . . . 8 2 Assimilate 4 | . . . . . . . 3 1 Botnet 8 | . 2 . . . . . 5 1 Fabricators . | . . . . . . . . . Repair Stations . | . . . . . . . . . Recycling Units . | . . . . . . . . . Scanalyzers 1 | . . . . . . . 1 . Extract 1 | . . . . . . . 1 . Garrison Access . | . . . . . . . . . Data Cores Recovered . | . . . . . . . . . Used . | . . . . . . . . . Hacking Detections 11 | . 3 . . . 2 . 2 4 Full Trace Events 2 | . . . . . . . . 2 Feedback Events . | . . . . . . . . . Feedback Blocked . | . . . . . . . . . Robot Schematics Acquired . | . . . . . . . . . Robots Built . | . . . . . . . . . Authchips . | . . . . . . . . . Time . | . . . . . . . . . Total Robot Build Rating . | . . . . . . . . . Part Schematics Acquired 1 | . . . . . . . 1 . Parts Built 1 | . . . . . . . . 1 Authchips . | . . . . . . . . . Time 58 | . . . . . . . . 58 Total Part Build Rating 3 | . . . . . . . . 3 Parts Repaired 2 | . . . . . 1 . . 1 Time 86 | . . . . . 26 . . 60 Parts Recycled . | . . . . . . . . . Recycled Matter . | . . . . . . . . . Retrieved Matter . | . . . . . . . . . Retrieved Components . | . . . . . . . . . Parts Scanalyzed . | . . . . . . . . . Part Schematics Acquired . | . . . . . . . . . Parts Damaged . | . . . . . . . . . Bothacking | -11 -10 -10 -10 -9 -8 -8 -8 -7 ------------ Run | Scr Mat Min Exi Min Mat Gar Mat Fac Used RIF Installer 1 | . . . . . . 1 . . Robots Hacked . | . . . . . . . . . Non-combat . | . . . . . . . . . Combat . | . . . . . . . . . Robot Hacks Applied . | . . . . . . . . . Relay Couplers Released 5 | . . . . . . 5 . . Machine Destruction 5 | . . . . . . 5 . . Attached 1 | . . . . . . 1 . . Fabnet Peak Effective % . | . . . . . . . . . Robots Rewired 2 | . . . 2 . . . . . Allies Hacked . | . . . . . . . . . Hacks Repelled . | . . . . . . . . . Allies | -11 -10 -10 -10 -9 -8 -8 -8 -7 -------- Run | Scr Mat Min Exi Min Mat Gar Mat Fac Total Allies 3 | . . . 2 . . . 1 . Largest Group 2 | . . . 2 2 . . 1 . Highest-Rated Group 16 | . . . 16 16 . . 10 . Highest-Rated Ally 10 | . . . 8 8 . . 10 . Total Orders . | . . . . . . . . . Ally Attacks 2 | . . . . 2 . . . . Total Damage 11 | . . . . 11 . . . . Kills . | . . . . . . . . . Allies Corrupted . | . . . . . . . . . Allies Melted . | . . . . . . . . . Intel | -11 -10 -10 -10 -9 -8 -8 -8 -7 ------- Run | Scr Mat Min Exi Min Mat Gar Mat Fac Robot Analysis Total . | . . . . . . . . . Derelict Logs Recovered 3 | . . 1 . 2 . . . . Drone Launches . | . . . . . . . . . Drone Recoveries . | . . . . . . . . . Exploration | -11 -10 -10 -10 -9 -8 -8 -8 -7 ------------- Run | Scr Mat Min Exi Min Mat Gar Mat Fac Turns Passed 4968 | 2 735 1167 1225 328 199 163 325 824 Spaces Moved 4122 | 1 399 716 727 170 203 194 556 1156 Core . | . . . . . . . . . Treads 1921 | . 308 716 727 170 . . . . Legs 92 | 1 91 . . . . . . . Wheels . | . . . . . . . . . Hover 70 | . . . . . . . . 70 Flight 2039 | . . . . . 203 194 556 1086 Fastest Speed 25 | 120 120 160 160 160 31 31 31 25 Average Speed 94 | 120 150 160 160 160 34 33 31 33 Slowest Speed 160 | 120 160 160 160 160 101 101 34 120 Overloaded Moves . | . . . . . . . . . Propulsion Burnouts . | . . . . . . . . . Robots Hopped 20 | . . . . . . . 4 16 Cave-ins Triggered . | . . . . . . . . . Exploration Rate (%) 43 | 3 57 92 94 33 20 29 42 22 Regions Visited 8 Branch Regions 3 Pre-discovered Areas 2 | . . 1 . 1 . . . . Known Exits Taken 5 | . 1 1 1 . 1 . 1 . Unknown Exits Taken 2 | 1 . . . 1 . . . . Scrap Searched 4 | . . 3 . 1 . . . . Spaces Dug . | . . . . . . . . . Terrain Destroyed 1 | . . . . . . . . 1 Melee . | . . . . . . . . . Projectile 1 | . . . . . . . . 1 AOE . | . . . . . . . . . Terrain Rammed . | . . . . . . . . . Walls Destroyed . | . . . . . . . . . Machines Disabled . | . . . . . . . . . Actions | -11 -10 -10 -10 -9 -8 -8 -8 -7 --------- Run | Scr Mat Min Exi Min Mat Gar Mat Fac Total 4953 | 1 482 726 790 198 317 287 683 1469 Wait 376 | . 20 1 7 9 77 . 87 175 Move 4077 | . 398 715 726 169 203 193 547 1126 Hop 18 | . . . . . . . 4 14 Pick Up 25 | . 10 . 1 1 6 2 2 3 Fast Attach 33 | . 4 . 2 1 3 1 3 19 Attach 21 | . . . 2 . 5 3 1 10 Detach 18 | . . . . . 2 4 3 9 Swap 20 | 1 4 . . . 8 1 . 6 Drop 43 | . 13 . 4 . 6 4 3 13 Fire 194 | . 33 6 . 17 7 7 33 91 Melee . | . . . . . . . . . Ram 3 | . . . . . . . . 3 Kick . | . . . . . . . . . Crush 5 | . . 4 . 1 . . . . Escape Stasis 72 | . . . . . . 72 . . Rewire 48 | . . . 48 . . . . . Trap . | . . . . . . . . . Miscellaneous . | . . . . . . . . . Route ------- -11/Scrapyard -10/Materials (discovered 3 exits: *Mat / *Min x2) -10/Mines (discovered 3 exits: *Mat x2 / *Exi) -10/Exiles (discovered 2 exits: *Min x2) -9/Mines -8/Materials (discovered 2 exits: *Fac / Gar) -8/Garrison -8/Materials (discovered 3 exits: *Fac x3) -7/Factory (discovered 2 exits: [*Fac] / Sto) History --------- Turn | Location | Event 3 | -11/Scrapyard | Discovered new exit (range 0) 3 | -11/Scrapyard | Entered Materials 101 | -10/Materials | Discovered new exit (range 12) 230 | -10/Materials | Discovered new exit (range 14) 304 | -10/Materials | Build established: Mutant 717 | -10/Materials | Discovered new exit (range 13) 736 | -10/Materials | Identified exit to Mines 738 | -10/Materials | Entered Mines 767 | -10/Mines | Discovered new exit (range 5) 772 | -10/Mines | Identified exit to Materials 794 | -10/Mines | Learned location of Zion (-7) 847 | -10/Mines | Discovered exit to Materials (range 7) 1897 | -10/Mines | Deemed a non-threat by the Exiles lab entrance 1899 | -10/Mines | Discovered new exit (range 5) 1904 | -10/Mines | Identified exit to Exiles 1905 | -10/Mines | Entered Exiles 1905 | -10/Exiles | Found Exiles lab destroyed 1939 | -10/Exiles | Discovered new exit (range 15) 1958 | -10/Exiles | Identified exit to Mines 2932 | -10/Exiles | Opened EX-Vault 2939 | -10/Exiles | Found Prototype Device 2939 | -10/Exiles | Identified Cloak of Protection 3116 | -10/Exiles | Discovered exit to Mines (range 10) 3130 | -10/Exiles | Entered Mines 3130 | -9/Mines | Accompanied by 2 allies 3175 | -9/Mines | Core integrity fell below 50% 3218 | -9/Mines | Core integrity fell below 20% 3442 | -9/Mines | Discovered new exit (range 9) 3458 | -9/Mines | Entered Materials 3458 | -8/Materials | Evolved 4 slots: Power x1, Propulsion x2, Utility x1 3553 | -8/Materials | Discovered new exit (range 4) 3591 | -8/Materials | Repaired Lgt. Ion Engine 3657 | -8/Materials | Identified exit to Garrison 3657 | -8/Materials | Entered Garrison 3663 | -8/Garrison | Installed Relay Interface Framework 3714 | -8/Garrison | Garrison Relay disabled 3740 | -8/Garrison | Triggered checkpoint 3759 | -8/Garrison | Build established: Sprinter 3777 | -8/Garrison | Discovered new exit (range 10) 3820 | -8/Garrison | Entered Materials 3918 | -8/Materials | Discovered new exit (range 6) 4048 | -8/Materials | Identified exit to Factory 4145 | -8/Materials | Entered Factory 4145 | -7/Factory | Evolved 2 slots: Propulsion x1, Utility x1 4146 | -7/Factory | Identified exit to Storage 4256 | -7/Factory | Fabricated Enh. Autogun? 4662 | -7/Factory | Lost 4 parts (1p2n1w) 4743 | -7/Factory | Repaired Enh. Autogun 4936 | -7/Factory | Discovered new exit (range 8) 4954 | -7/Factory | Core integrity fell below 50% 4969 | -7/Factory | Self-destructed Last Messages --------------- 04944_ Airjet destroyed. 04944_ Mak. System Shield destroyed. 04946_ Airjet destroyed. 04946_ Relay Coupler [Grunt] destroyed. 04947_ C-17 Slicer suffers critical hit (Destroy). 04947_ C-17 Slicer destroyed. 04947_ Switching to secondary target: H-61 Shepherd. 04950_ Acquired 16 matter. 04951_ Penetrated by Slug. 04951_ Knocked back. 04955_ Slug penetrates Wall. 04956_ Airjet severed. 04956_ Slammed into C-17 Slicer. 04959_ Hpw. Shotgun destroyed. 04961_ C-17 Slicer destroyed. 04961_ Slug penetrates Earth. 04963_ Lgt. Deuterium Engine destroyed. 04963_ Knocked back. 04966_ Acquired 5 matter. 04968_ Knocked back. Map ----- +----------------------------------------------------+ | | | | | | | | | | | | | | | | | | | | | | | | | | | | | | | | | | | | | | | | | | | ?????????????????????????????????????????????????? | | ?????????????????????????######??????????????????? | | ?????????????????????##### # ######?????????????? | | ?????????????????????# %;/ !;; #?????????????? | | ????????????????????????#@ !*%H < +?????????????? | | ##################??????#g#=#### #?????????????? | | # [ #??????#g###????????????????????? | | # #??????#g#????????????????####### | | # #??????# #????????? | | # #??????# #????????????????####### | | # [ #??????# #???????????????????##?? | | # #??????# #???????????????? """" # | | / !! #??????# #??????? ?????#""""""# | | # !! #??????# #??????# ?????#""F ""# | | # !! #??????# #??????# ######""" # | | ##########+############## #??????# ! | | + #u#????### | | ########## # = """ """ # #?? # " " " " " " | | ??######## # """ "R" # # """"# " " " " " " | | ??#=!! = # # """ " " + + """"# " " " " " " | | ??#=!! # # # # """"# " " " " " " | | ??# !! # ##/########### #??""""# " " " " " " | | ??# + %#?????????# #???? # " " " " " " | | ??# # #?????????# #??????# " " " " " " | | ??# # ########### #??????# " " " " " " | | ??######## #??????# " " " " " " | | ????????# #??????# | | ????????# #??????## | | ????????# #???????# ####### | +----------------------------------------------------+ Best States ------------- Heat Dissipation 48 Energy Generation 23 Energy Capacity 320 Matter Stores 300 Matter Capacity 300 Sight Range 16 Robot Scan Range 14 Terrain Scan Range 14 Terrain Scan Density 10 Cloak Strength 5 Evasion (%) 65 Recoil Reduction 2 Offensive Hacking 10 Defensive Hacking 11 Relay Coupler Types 1 Relay Coupler Value 25 Item Schematics ----------------- Enh. Autogun | -8/Materials | Extracted Robot Schematics ------------------ None Fabricated ------------ Enh. Autogun | x1 | -7/Factory Alien Tech Used ----------------- None Achievements -------------- Can't Catch Me Challenges ------------ None Game ------ Seed WaveGrenadeNanoactuators Manual? 0 Play Time 00:55:45 Cumulative 53.1 hours Start 2022.04.01 @ 18:40:22 End 2022.04.01 @ 19:37:26 Sessions 1 Manual Loads 0 Difficulty Rogue Special Mode None Game No. 76 Rogue 20 Adventurer 56 Explorer 0 Win Type - Total 4 Types 3/0/0/1/0/0/0/0/0 Lore% 46 Gallery% 53 Achievement% 54 Wizard Run 0 Options --------- ASCII 0 Keyboard 0 Movement Mouse Keybinds 0 Fullscreen 1 Font 20/SmallcapsGlow Map View 66x50 Tactical HUD 1 Map Filters NONE Filters NONE Steam 1 RUN: 9c96e1db-6405-4675-8281-4b07fef9c7d0